Cogmind - Beta 9.6 @@@ ROGUE MODE // 2020.07.25 @ 03:13:49 Player: Phillammon Result: Destroyed by G-47 Trooper with Particle Gun Performance ------------- Evolutions (1) 500 Regions Visited (4) 800 Robots Destroyed (13) 65 Value Destroyed (301) 301 Prototype IDs (0) 0 Alien Tech Used (0) 0 Bonus (0) 0 TOTAL SCORE: 1666 Bonus ------- None Cogmind --------- Core Integrity 0/400 Matter 202/300 Energy 99/100 System Corruption 0% Temperature Cool (9) Movement Core (50) Location -9/Storage Parts ------- > --- POWER (1) -------- (None) > --- PROPULSION (2) --- (None) > --- UTILITY (4) ------ (None) > --- WEAPON (2) ------- (None) > --- INVENTORY (4) ---- (None) Peak State ------------ > --- POWER ------------ Light Ion Engine > --- PROPULSION ------- Light Treads Aluminum Leg > --- UTILITY ---------- Small Storage Unit > --- WEAPON ----------- Assault Rifle Light Assault Rifle > --- INVENTORY -------- Light Ion Engine Light Treads Aluminum Leg Compact Wheel Compact Wheel Assault Rifle [Rating: 6] Favorites ----------- Power Light Ion Engine Engine Light Ion Engine Propulsion Compact Wheel Treads Light Treads Leg Improved Aluminum Leg Wheel Compact Wheel Utility Small Storage Unit Storage Small Storage Unit Weapon Assault Rifle Ballistic Gun Assault Rifle Launcher Grenade Launcher Build | -11 -10 -10 -9 -9 ------- Run | Scr Mat Min Mat Sto Slots Evolved 2 | . . . 2 . Power . | . . . . . Propulsion . | . . . . . Utility 2 | . . . 2 . Weapon . | . . . . . Parts Attached 9 | 3 1 . 3 2 Power 1 | . . . . 1 Engine 1 | . . . . 1 Core . | . . . . . Reactor . | . . . . . Propulsion 4 | 3 . . 1 . Treads 2 | 2 . . . . Leg 1 | . . . 1 . Wheel 1 | 1 . . . . Hover . | . . . . . Flight . | . . . . . Utility . | . . . . . Device . | . . . . . Storage . | . . . . . Processor . | . . . . . Hackware . | . . . . . Protection . | . . . . . Artifact . | . . . . . Weapon 4 | . 1 . 2 1 Energy Gun . | . . . . . Energy Cannon . | . . . . . Ballistic Gun 3 | . . . 2 1 Ballistic Cannon . | . . . . . Launcher 1 | . 1 . . . Special Weapon . | . . . . . Impact Weapon . | . . . . . Slashing Weapon . | . . . . . Piercing Weapon . | . . . . . Special Melee Weapon . | . . . . . Unidentified Prototypes . | . . . . . Parts Lost 11 | . 1 3 . 7 Power 2 | . . 1 . 1 Propulsion 3 | . 1 . . 2 Utility 1 | . . . . 1 Weapon 5 | . . 2 . 3 Highest Loss Streak 5 | . 1 4 . 5 Average Slot Usage (%) 57 | . 85 52 51 45 Engine 8 | . 14 9 . 8 Treads 3 | . 14 . . . Leg 5 | . . . 7 9 Wheel 7 | . 14 14 11 1 Storage 12 | . 14 14 11 11 Ballistic Gun 17 | . 21 9 22 15 Launcher 2 | . 7 4 . . Naked Turns 3 | . . . . 3 Heaviest Build 12 | 10 12 12 7 10 Greatest Support 16 | 16 16 16 16 16 Greatest Overweight (x) 3 | . . . . 3 Average Overweight (x) . | . . . . 2 Largest Inventory Capacity 6 | 6 6 6 6 6 Average Capacity 5 | 6 6 6 6 5 Most Carried 6 | 6 2 2 2 1 Average Carried . | 4 1 2 . . Final Capacity 6 | 6 6 6 6 4 Final Carried 2 | 1 2 2 . . Class Distribution -------------------- 100% | Mutant Dominant Class ---------------- Mutant | -10/Materials Mutant | -10/Mines Mutant | -9/Materials Mutant | -9/Storage Resources | -11 -10 -10 -9 -9 ----------- Run | Scr Mat Min Mat Sto Matter Collected 308 | 200 35 . . 73 Remotely . | . . . . . Salvage Created 244 | . 78 . . 166 Parts 23 | . 12 . . 11 Haulers Intercepted . | . . . . . Recyclers Shooed . | . . . . . Parts Field Recycled . | . . . . . Retrieved Matter . | . . . . . Parts Self-Destructed . | . . . . . Prevented . | . . . . . Kills | -11 -10 -10 -9 -9 ------- Run | Scr Mat Min Mat Sto Combat Hostiles Destroyed 10 | . 4 . . 6 Guns 7 | . 1 . . 6 AOE 3 | . 3 . . . Classes Destroyed 5 | . 5 . . . Builder 1 | . 1 . . . Operator 1 | . 1 . . . Watcher 1 | . 1 . . . Swarmer 4 | . 1 . . 3 Grunt 6 | . 3 . . 3 Best Kill Streak 7 | . 7 . . 3 Combat Bots Only 4 | . 4 . . 3 Max Kills in Single Turn 4 | . 4 . . 1 Gunslinging . | . . . . . Exploded 1 | . 1 . . . Melee . | . . . . . Uniques/NPCs Destroyed . | . . . . . Combat | -11 -10 -10 -9 -9 -------- Run | Scr Mat Min Mat Sto Damage Taken 1517 | . 278 315 123 801 Core 571 | . 12 150 37 372 Absorbed by Shields . | . . . . . Core Remaining (%) 67 | 100 . 35 . . Volleys Fired 36 | . 8 1 1 26 Largest 2 | . 2 1 2 2 Hottest 50 | . 50 20 40 40 Shots Fired 50 | . 16 1 2 31 Gun 42 | . 8 1 2 31 Cannon . | . . . . . Launcher 8 | . 8 . . . Special . | . . . . . Kinetic 42 | . 8 1 2 31 Thermal . | . . . . . Explosive 8 | . 8 . . . Electromagnetic . | . . . . . Robot Hit Streak 7 | . 6 7 . 7 Robot Miss Streak 5 | . 1 . 2 5 Penetration Max . | . . . . . Secondary Targets . | . . . . . Shots Hit Robots 26 | . 7 1 . 18 Core Hits 30 | . 14 . . 16 Critical Hits . | . . . . . Critical Kills . | . . . . . Critical Parts Destroyed . | . . . . . Melee Attacks . | . . . . . Impact . | . . . . . Slashing . | . . . . . Piercing . | . . . . . Sneak Attacks . | . . . . . Combat Hostiles . | . . . . . Follow-up Attacks . | . . . . . Damage Inflicted 781 | . 547 14 . 220 Guns 269 | . 42 14 . 213 Cannons . | . . . . . Explosions 505 | . 505 . . . Melee . | . . . . . Ramming 7 | . . . . 7 Kinetic 269 | . 42 14 . 213 Thermal . | . . . . . Explosive 505 | . 505 . . . Electromagnetic . | . . . . . Impact . | . . . . . Slashing . | . . . . . Piercing . | . . . . . Highest Corruption . | . . . . . Average Corruption . | . . . . . Corruption Purged . | . . . . . Overload Shots . | . . . . . Overflow Damage 27 | . 27 . . . Projectiles . | . . . . . Explosions 27 | . 27 . . . Melee . | . . . . . Knockbacks . | . . . . . Impact . | . . . . . Kinetic . | . . . . . Secondary . | . . . . . Self-Inflicted Damage 110 | . 108 . . 2 Shots 4 | . 4 . . . Rammed 4 | . . . . 4 Targets Rammed 4 | . . . . 4 Kicked . | . . . . . Crushed . | . . . . . Highest Temperature 21 | . 11 . . 21 Average Temperature 8 | . 4 . . 11 Received Heat Transfer 441 | . 57 . 27 357 Siege Activations . | . . . . . Robots Corrupted . | . . . . . Combat Hostiles . | . . . . . Parts Fried . | . . . . . Impact Corruptions . | . . . . . Robots Melted . | . . . . . Combat Hostiles . | . . . . . Parts Melted . | . . . . . Heat Transferred . | . . . . . Parts Sabotaged . | . . . . . Parts Stolen . | . . . . . Parts Stripped . | . . . . . Power Chain Reactions . | . . . . . Missiles Intercepted . | . . . . . Alert | -11 -10 -10 -9 -9 ------- Run | Scr Mat Min Mat Sto Peak Influence 172 | . 172 63 42 123 Average Influence 51 | . 41 49 19 70 Maximum Alert Level . | . . . . . Low Security (%) 100 | 100 100 100 100 100 Level 1 . | . . . . . Level 2 . | . . . . . Level 3 . | . . . . . Level 4 . | . . . . . Level 5 . | . . . . . High Security . | . . . . . Max Security . | . . . . . Squads Dispatched 4 | . 2 . . 2 Investigation 1 | . . . . 1 Extermination . | . . . . . Reinforcement 3 | . 2 . . 1 Assault . | . . . . . Garrison . | . . . . . Intercept . | . . . . . Construction Impeded . | . . . . . Haulers Reinforced . | . . . . . Stealth | -11 -10 -10 -9 -9 --------- Run | Scr Mat Min Mat Sto Distress Signals 2 | . 2 . . . Communications Jammed . | . . . . . Distress Signals . | . . . . . Times Spotted 31 | . 12 2 2 15 Peak Tracking Total 6 | . 4 2 2 6 Tactical Retreats . | . . . . . Traps | -11 -10 -10 -9 -9 ------- Run | Scr Mat Min Mat Sto Traps Triggered 1 | . . . 1 . Indirectly . | . . . . . Trap Hack Attempts . | . . . . . Triggered . | . . . . . Disarmed . | . . . . . Reprogrammed . | . . . . . Reused . | . . . . . Traps Extracted . | . . . . . Installed . | . . . . . Triggered . | . . . . . Machines | -11 -10 -10 -9 -9 ---------- Run | Scr Mat Min Mat Sto Machines Disabled 2 | . 2 . . . Max in Single Turn 1 | . 1 . . . Machines Sabotaged . | . . . . . Garrisons Compromised . | . . . . . Overloaded Fab Kills . | . . . . . Fab Network Shutdowns . | . . . . . Hacking | -11 -10 -10 -9 -9 --------- Run | Scr Mat Min Mat Sto Machines Accessed 1 | . . . . 1 Terminals 1 | . . . . 1 Fabricators . | . . . . . Repair Stations . | . . . . . Recycling Units . | . . . . . Scanalyzers . | . . . . . Garrison Access . | . . . . . Total Hacks 5 | . . . . 5 Successful 3 | . . . . 3 Failed 2 | . . . . 2 Catastrophic . | . . . . . Database Lockouts . | . . . . . Manual 5 | . . . . 5 Terminals 5 | . . . . 5 Fabricators . | . . . . . Repair Stations . | . . . . . Recycling Units . | . . . . . Scanalyzers . | . . . . . Garrison Access . | . . . . . Terminal Hacks . | . . . . . Fabricator Hacks . | . . . . . Repair Station Hacks . | . . . . . Recycling Unit Hacks . | . . . . . Scanalyzer . | . . . . . Garrison Access Hacks . | . . . . . Unauthorized Hacks 3 | . . . . 3 Terminals 3 | . . . . 3 Assimilate 1 | . . . . 1 Botnet 1 | . . . . 1 Operators 1 | . . . . 1 Fabricators . | . . . . . Repair Stations . | . . . . . Recycling Units . | . . . . . Scanalyzers . | . . . . . Garrison Access . | . . . . . Data Cores Recovered . | . . . . . Used . | . . . . . Hacking Detections 1 | . . . . 1 Full Trace Events 1 | . . . . 1 Feedback Events . | . . . . . Feedback Blocked . | . . . . . Robot Schematics Acquired . | . . . . . Robots Built . | . . . . . Matter . | . . . . . Time . | . . . . . Total Robot Build Rating . | . . . . . Part Schematics Acquired . | . . . . . Parts Built . | . . . . . Matter . | . . . . . Time . | . . . . . Total Part Build Rating . | . . . . . Parts Repaired . | . . . . . Time . | . . . . . Parts Recycled . | . . . . . Recycled Matter . | . . . . . Retrieved Matter . | . . . . . Retrieved Components . | . . . . . Parts Scanalyzed . | . . . . . Part Schematics Acquired . | . . . . . Parts Damaged . | . . . . . Bothacking | -11 -10 -10 -9 -9 ------------ Run | Scr Mat Min Mat Sto Used RIF Installer . | . . . . . Robots Hacked . | . . . . . Non-combat . | . . . . . Combat . | . . . . . Robot Hacks Applied . | . . . . . Relay Couplers Released . | . . . . . Robots Rewired . | . . . . . Allies Hacked . | . . . . . Hacks Repelled . | . . . . . Allies | -11 -10 -10 -9 -9 -------- Run | Scr Mat Min Mat Sto Total Allies . | . . . . . Largest Group . | . . . . . Highest-Rated Group . | . . . . . Highest-Rated Ally . | . . . . . Total Orders . | . . . . . Ally Attacks . | . . . . . Total Damage . | . . . . . Kills . | . . . . . Allies Corrupted . | . . . . . Allies Melted . | . . . . . Intel | -11 -10 -10 -9 -9 ------- Run | Scr Mat Min Mat Sto Robot Analysis Total . | . . . . . Derelict Logs Recovered . | . . . . . Drone Launches . | . . . . . Drone Recoveries . | . . . . . Exploration | -11 -10 -10 -9 -9 ------------- Run | Scr Mat Min Mat Sto Turns Passed 382 | 8 100 21 68 185 Spaces Moved 216 | 1 61 20 61 73 Core 62 | . . . . 62 Treads . | . . . . . Legs 4 | . . . 4 . Wheels 150 | 1 61 20 57 11 Hover . | . . . . . Flight . | . . . . . Fastest Speed 50 | 100 100 100 100 50 Average Speed 120 | 100 100 100 101 159 Slowest Speed 200 | 100 100 100 120 200 Overloaded Moves . | . . . . . Propulsion Burnouts . | . . . . . Robots Hopped . | . . . . . Cave-ins Triggered . | . . . . . Exploration Rate (%) 13 | 2 25 11 10 18 Regions Visited 4 Branch Regions 2 Pre-discovered Areas . | . . . . . Known Exits Taken . | . . . . . Unknown Exits Taken 4 | 1 1 1 1 . Scrap Searched . | . . . . . Spaces Dug . | . . . . . Terrain Destroyed 29 | . 29 . . . Melee . | . . . . . Projectile . | . . . . . AOE 29 | . 29 . . . Actions | -11 -10 -10 -9 -9 --------- Run | Scr Mat Min Mat Sto Total 287 | 8 83 20 65 111 Wait 17 | . 13 . . 4 Move 212 | . 60 19 60 73 Hop . | . . . . . Pick Up 4 | . 1 . 1 2 Fast Attach . | . . . . . Attach 5 | . . . 3 2 Detach . | . . . . . Swap 4 | 3 1 . . . Drop 5 | 5 . . . . Fire 36 | . 8 1 1 26 Melee . | . . . . . Ram 4 | . . . . 4 Kick . | . . . . . Crush . | . . . . . Escape Stasis . | . . . . . Rewire . | . . . . . Trap . | . . . . . Miscellaneous . | . . . . . Route ------- -11/Scrapyard -10/Materials -10/Mines -9/Materials -9/Storage History --------- Turn | Location | Event 9 | -11/Scrapyard | Discovered new exit (range 0) 9 | -11/Scrapyard | Entered Materials 83 | -10/Materials | Discovered new exit (range 15) 109 | -10/Materials | Entered Mines 111 | -10/Mines | Assembled infested the area 111 | -10/Mines | Met a Derelict bent on vengeance 120 | -10/Mines | Discovered new exit (range 12) 124 | -10/Mines | Core integrity fell below 50% 130 | -10/Mines | Entered Materials 130 | -9/Materials | Evolved 2 slots: Utility x2 154 | -9/Materials | Lost 4 parts (1p1n2w) 184 | -9/Materials | Discovered new exit (range 14) 198 | -9/Materials | Entered Storage 315 | -9/Storage | Build established: Mutant 362 | -9/Storage | Core integrity fell below 50% 377 | -9/Storage | Core integrity fell below 20% 383 | -9/Storage | Destroyed by G-47 Trooper with Particle Gun Last Messages --------------- 00318_ R-06 Scavenger inserts Flight Unit into recycling unit. 00323_ ALERT: Hostiles spotted, dispatching reinforcements to Terminal S008. 00345_ Assault Rifle destroyed. 00345_ G-34 Mercenary destroyed. 00348_ R-06 Scavenger collects Sml. Laser. 00348_ R-06 Scavenger collects Aluminum Leg. 00351_ G-34 Mercenary destroyed. 00351_ R-06 Scavenger collects Aluminum Leg. 00352_ R-06 Scavenger collects Heat Sink. 00355_ R-06 Scavenger collects Aluminum Leg. 00355_ Lgt. Assault Rifle destroyed. 00356_ Slammed into G-47 Trooper. 00359_ Imp. Aluminum Leg destroyed. 00359_ Slammed into G-47 Trooper. 00359_ Destabilizing: Core damaged (-4). 00360_ Acquired 42 matter. 00372_ Lgt. Ion Engine destroyed. 00380_ Sml. Storage Unit destroyed. 00381_ Slammed into U-05 Engineer. Map ----- +----------------------------------------------------+ | ??????????????#####??# % #?????????? | | ??????????????#"""#??# % ###########?????????? | | ????????????###"T"##### %##???????????????????? | | ????????????# # % #????????????????????? | | ????????????# # #???? ??????????????? | | ??????????### """ """ # #??"" "??????????????? | | ??????????#"" """ """ # # """ ""?????????????? | | ??????????#"Y """ """ + + """ ""?????????????? | | ??????????#"" %# # """ ""?????????????? | | ??????????### # #??"" "??????????????? | | ????????????# # #???? ??????????????? | | ????????????########### g#????????????????????? | | ??????????????????????# g #????????????????????? | | ??????????????????????# g #????????????????????? | | ??????????????????????# #????????????????????? | | ??????????????????????# #??##????##??????????? | | ?????????????????????## #? ??? ##?????????? | | ?????????????????????#T #? ?? "#?????????? | | ?????????????????????## r # T#?????????? | | ??????????????????????#r # "#?????????? | | ??????????????????????# + #??????????? | | ??????????????????????# o# """ """ #??????????? | | ??????????????????????# #??"" "??????????????? | | ??????????????????????#r g#???? "??????????????? | | ??????????????????????# #????????????????????? | | ??????????????????????#g @#????????????????????? | | ??????????????????????# u #????????????????????? | | ??????????????????????+ +????????????????????? | | ?????????????????????## #????????????????????? | | ??????????????????????#w #????????????????????? | | ??????????????????????# #????????????????????? | | ??????????????????????# #????????????????????? | | ??????????????????????# #????????????????????? | | ??????????????????????# #????????????????????? | | ??????????????????????# #????????????????????? | | ??????????????????????# #????????????????????? | | ??????????????????????# #????????????????????? | | ??????????????????????# ?????????????????????? | | ??????????????????????# ?????????????????????? | | ?????????????????????? ?????????????????????? | | ??????????????????????? ?????????????????????? | | ???????????????????????????????????????????????? | | ???????????????????????????????????????????????? | | ???????????????????????????????????????????????? | | ???????????????????????????????????????????????? | | ???????????????????????????????????????????????? | | ???????????????????????????????????????????????? | | ???????????????????????????????????????????????? | | ???????????????????????????????????????????????? | | ???????????????????????????????????????????????? | +----------------------------------------------------+ Best States ------------- Heat Dissipation 28 Energy Generation 10 Energy Capacity 125 Matter Stores 270 Matter Capacity 300 Sight Range 16 Terrain Scan Density 10 Evasion (%) 40 Item Schematics ----------------- None Robot Schematics ------------------ None Fabricated ------------ Nothing Alien Tech Used ----------------- None Achievements -------------- None Challenges ------------ None Game ------ Seed AlphaGreatCloak Manual? 0 Play Time 00:06:05 Cumulative 11.8 hours Start 2020.07.25 @ 03:09:24 End 2020.07.25 @ 03:13:49 Sessions 1 Manual Loads 0 Difficulty Rogue Special Mode None Game No. 35 Rogue 35 Adventurer 0 Explorer 0 Win Type - Total 0 Types 0/0/0/0/0/0/0 Lore% 15 Gallery% 21 Achievement% 18 Wizard Run 0 Options --------- ASCII 0 Keyboard 0 Movement Mouse Keybinds 0 Fullscreen 1 Font 18/SmallcapsGlow Map View 76x50 Tactical HUD 1 Map Filters NONE Filters NONE Steam 0 RUN: b254c9c6-e243-49a0-bb84-74d668c32da6